[Event "Early-Titled-Tuesday-Blitz-January-23-2024"]
[Site "Chess.com"]
[Date "2024.01.23"]
[Round "8"]
[White "Felix-Rose"]
[Black "tolimachess"]
[Result "0-1"]
[WhiteElo "2306"]
[BlackElo "2474"]
[TimeControl "180+1"]
[EndTime "9:28:02 PST"]
[Termination "tolimachess won by resignation"]

1. Nf3 {[%clk 0:02:59.7]} 1... g6 {[%clk 0:02:58]} 2. e3 {[%clk 0:02:57.7]} 2...
Bg7 {[%clk 0:02:58]} 3. Be2 {[%clk 0:02:57.6]} 3... e5 {[%clk 0:02:58.4]} 4. O-O
{[%clk 0:02:49.2]} 4... d5 {[%clk 0:02:58.2]} 5. d4 {[%clk 0:02:48.7]} 5... e4
{[%clk 0:02:58.1]} 6. Nfd2 {[%clk 0:02:48.1]} 6... Ne7 {[%clk 0:02:56.6]} 7. c4
{[%clk 0:02:47.9]} 7... c6 {[%clk 0:02:56.5]} 8. Nc3 {[%clk 0:02:47.8]} 8... O-O
{[%clk 0:02:55.2]} 9. Qb3 {[%clk 0:02:45.8]} 9... a6 {[%clk 0:02:46.3]} 10. f3
{[%clk 0:02:44.9]} 10... exf3 {[%clk 0:02:41.7]} 11. Bxf3 {[%clk 0:02:44.1]}
11... dxc4 {[%clk 0:02:40.3]} 12. Qxc4 {[%clk 0:02:27.3]} 12... Be6 {[%clk
0:02:37.1]} 13. Qd3 {[%clk 0:02:18.7]} 13... c5 {[%clk 0:02:28.7]} 14. Bxb7
{[%clk 0:01:54.8]} 14... cxd4 {[%clk 0:02:24.8]} 15. Bxa8 {[%clk 0:01:49.7]}
15... dxc3 {[%clk 0:02:24.5]} 16. Qxd8 {[%clk 0:01:47.4]} 16... Rxd8 {[%clk
0:02:25.1]} 17. bxc3 {[%clk 0:01:40.5]} 17... Bxc3 {[%clk 0:02:15.7]} 18. Rb1
{[%clk 0:01:40.1]} 18... Nd7 {[%clk 0:02:11.6]} 19. Ne4 {[%clk 0:01:29]} 19...
Be5 {[%clk 0:01:57.9]} 20. Ba3 {[%clk 0:01:21.9]} 20... Nf5 {[%clk 0:01:48.5]}
21. Bc6 {[%clk 0:01:06.8]} 21... Nxe3 {[%clk 0:01:45.7]} 22. Rfe1 {[%clk
0:01:03.3]} 22... Nc2 {[%clk 0:01:39.7]} 23. Be7 {[%clk 0:00:59]} 23... Re8
{[%clk 0:01:16.6]} 24. Bxd7 {[%clk 0:00:54.4]} 24... Rxe7 {[%clk 0:01:06.6]} 25.
Bxe6 {[%clk 0:00:54.3]} 25... Nxe1 {[%clk 0:01:06.5]} 26. Bc4 {[%clk 0:00:43.9]}
26... Bd4+ {[%clk 0:01:04.9]} 27. Kf1 {[%clk 0:00:41.1]} 27... Nc2 {[%clk
0:01:04]} 28. Bd3 {[%clk 0:00:17.1]} 28... Ne3+ {[%clk 0:01:03]} 29. Ke2 {[%clk
0:00:15.5]} 29... Nd5 {[%clk 0:01:02.9]} 30. Kd2 {[%clk 0:00:14.1]} 30... Nf4
{[%clk 0:00:58.1]} 31. g3 {[%clk 0:00:10.8]} 31... Nd5 {[%clk 0:00:47.1]} 32.
Ng5 {[%clk 0:00:07.9]} 32... Be3+ {[%clk 0:00:46.1]} 33. Kc2 {[%clk 0:00:07.9]}
33... Bxg5 {[%clk 0:00:47]} 34. Bxa6 {[%clk 0:00:08.2]} 34... Ra7 {[%clk
0:00:45.9]} 35. Bc4 {[%clk 0:00:07.9]} 35... Ne3+ {[%clk 0:00:46.3]} 36. Kd3
{[%clk 0:00:08.4]} 36... Nxc4 {[%clk 0:00:47.2]} 37. Rb8+ {[%clk 0:00:08]} 37...
Kg7 {[%clk 0:00:46.9]} 38. Kxc4 {[%clk 0:00:08.6]} 38... Rxa2 {[%clk 0:00:47.5]}
39. h4 {[%clk 0:00:09.2]} 39... Bf6 {[%clk 0:00:47.7]} 40. Rb3 {[%clk
0:00:08.2]} 40... h5 {[%clk 0:00:46]} 41. Kd5 {[%clk 0:00:07.5]} 41... Re2
{[%clk 0:00:46.4]} 42. Kc4 {[%clk 0:00:06.8]} 42... Be5 {[%clk 0:00:43.8]} 43.
Kd3 {[%clk 0:00:06.9]} 43... Rg2 {[%clk 0:00:43.9]} 44. Ke4 {[%clk 0:00:06.6]}
44... Rxg3 {[%clk 0:00:44.3]} 45. Rb5 {[%clk 0:00:05.3]} 45... Bf6 {[%clk
0:00:43.8]} 0-1

[Event "Early-Titled-Tuesday-Blitz-January-23-2024"]
[Site "Chess.com"]
[Date "2024.01.23"]
[Round "8"]
[White "GMWSO"]
[Black "artooon"]
[Result "1-0"]
[WhiteElo "3114"]
[BlackElo "2986"]
[TimeControl "180+1"]
[EndTime "9:28:04 PST"]
[Termination "GMWSO won on time"]

1. d4 {[%clk 0:03:00.9]} 1... Nf6 {[%clk 0:02:59.5]} 2. c4 {[%clk 0:02:58.5]}
2... b6 {[%clk 0:03:00.1]} 3. Nc3 {[%clk 0:02:57.4]} 3... Bb7 {[%clk 0:03:00.1]}
4. Qc2 {[%clk 0:02:57.9]} 4... Nc6 {[%clk 0:02:57.5]} 5. Nf3 {[%clk 0:02:52.3]}
5... e6 {[%clk 0:02:51.1]} 6. e4 {[%clk 0:02:45.4]} 6... d6 {[%clk 0:02:21.3]}
7. d5 {[%clk 0:02:29.1]} 7... Ne7 {[%clk 0:02:01.2]} 8. Bd3 {[%clk 0:02:12.6]}
8... e5 {[%clk 0:02:00.3]} 9. Bg5 {[%clk 0:01:54.5]} 9... Ng6 {[%clk 0:01:44.6]}
10. Qa4+ {[%clk 0:01:51.7]} 10... Qd7 {[%clk 0:01:44.7]} 11. Qxd7+ {[%clk
0:01:35]} 11... Kxd7 {[%clk 0:01:36.9]} 12. Bxf6 {[%clk 0:01:34.5]} 12... gxf6
{[%clk 0:01:37.4]} 13. g3 {[%clk 0:01:35]} 13... a5 {[%clk 0:01:32.2]} 14. Bf1
{[%clk 0:01:28.5]} 14... Ke7 {[%clk 0:01:20.7]} 15. Bh3 {[%clk 0:01:28.6]} 15...
h5 {[%clk 0:01:19.1]} 16. Nb5 {[%clk 0:01:19.6]} 16... Kd8 {[%clk 0:01:15.9]}
17. Ke2 {[%clk 0:01:16.7]} 17... h4 {[%clk 0:01:09.9]} 18. Bf5 {[%clk
0:01:16.3]} 18... Bc8 {[%clk 0:01:01.5]} 19. Bxg6 {[%clk 0:01:14.6]} 19... fxg6
{[%clk 0:01:01]} 20. Nxh4 {[%clk 0:01:14.9]} 20... Rh6 {[%clk 0:00:56.5]} 21. h3
{[%clk 0:01:01.9]} 21... Be7 {[%clk 0:00:55.1]} 22. Ng2 {[%clk 0:00:57.2]} 22...
Bxh3 {[%clk 0:00:41.2]} 23. Ne3 {[%clk 0:00:55.9]} 23... Kd7 {[%clk 0:00:40.5]}
24. g4 {[%clk 0:00:55.6]} 24... Rah8 {[%clk 0:00:32]} 25. f3 {[%clk 0:00:55.8]}
25... Rh4 {[%clk 0:00:29.8]} 26. Rhg1 {[%clk 0:00:49.8]} 26... Bf8 {[%clk
0:00:29.5]} 27. Nc3 {[%clk 0:00:41.3]} 27... Bh6 {[%clk 0:00:29.3]} 28. Ncd1
{[%clk 0:00:41.4]} 28... Bf4 {[%clk 0:00:27.2]} 29. Nf2 {[%clk 0:00:40.8]} 29...
Ke7 {[%clk 0:00:20.5]} 30. b3 {[%clk 0:00:40.4]} 30... Kf7 {[%clk 0:00:20.7]}
31. a3 {[%clk 0:00:39.2]} 31... Bxe3 {[%clk 0:00:10]} 32. Kxe3 {[%clk 0:00:39]}
32... f5 {[%clk 0:00:10.5]} 33. b4 {[%clk 0:00:34.6]} 33... fxg4 {[%clk
0:00:07.2]} 34. fxg4 {[%clk 0:00:34.3]} 34... Kf6 {[%clk 0:00:05.8]} 35. Rg3
{[%clk 0:00:32.9]} 35... Kg5 {[%clk 0:00:02.1]} 36. Rh1 {[%clk 0:00:32.6]} 36...
axb4 {[%clk 0:00:01.7]} 37. axb4 {[%clk 0:00:30.9]} 37... Bxg4 {[%clk
0:00:01.8]} 38. Rhg1 {[%clk 0:00:25.1]} 1-0

[Event "Early-Titled-Tuesday-Blitz-January-23-2024"]
[Site "Chess.com"]
[Date "2024.01.23"]
[Round "8"]
[White "DrCeltic"]
[Black "Quattroporte300"]
[Result "1-0"]
[WhiteElo "2604"]
[BlackElo "2440"]
[TimeControl "180+1"]
[EndTime "9:28:04 PST"]
[Termination "DrCeltic won on time"]

1. e4 {[%clk 0:02:59.6]} 1... c5 {[%clk 0:02:58.1]} 2. Nf3 {[%clk 0:02:59.7]}
2... d6 {[%clk 0:02:58.5]} 3. d4 {[%clk 0:03:00.3]} 3... cxd4 {[%clk 0:02:58.7]}
4. Nxd4 {[%clk 0:03:01.2]} 4... Nf6 {[%clk 0:02:59.2]} 5. Nc3 {[%clk 0:03:01.7]}
5... a6 {[%clk 0:02:59.8]} 6. Be3 {[%clk 0:03:01.9]} 6... e6 {[%clk 0:02:59.2]}
7. g4 {[%clk 0:03:02]} 7... Be7 {[%clk 0:02:59.2]} 8. g5 {[%clk 0:03:01.8]} 8...
Nfd7 {[%clk 0:02:59.7]} 9. h4 {[%clk 0:03:01.4]} 9... b5 {[%clk 0:02:58.7]} 10.
a3 {[%clk 0:02:51.2]} 10... Bb7 {[%clk 0:02:57.6]} 11. Qh5 {[%clk 0:02:43.9]}
11... O-O {[%clk 0:02:52.5]} 12. Qg4 {[%clk 0:02:39.9]} 12... Nc6 {[%clk
0:02:43.3]} 13. g6 {[%clk 0:02:29.8]} 13... hxg6 {[%clk 0:02:35.3]} 14. Nxe6
{[%clk 0:02:17.1]} 14... fxe6 {[%clk 0:02:35]} 15. Qxe6+ {[%clk 0:02:17.5]}
15... Rf7 {[%clk 0:02:28.1]} 16. h5 {[%clk 0:02:13.9]} 16... Nf8 {[%clk
0:02:22.2]} 17. Qa2 {[%clk 0:01:49.6]} 17... gxh5 {[%clk 0:01:46.8]} 18. Rxh5
{[%clk 0:01:43.7]} 18... Ne5 {[%clk 0:01:46.2]} 19. O-O-O {[%clk 0:01:37.7]}
19... g6 {[%clk 0:01:43.8]} 20. Rh1 {[%clk 0:01:23.8]} 20... Bg5 {[%clk
0:01:26.4]} 21. f4 {[%clk 0:01:17.1]} 21... Bxf4 {[%clk 0:01:26.1]} 22. Bxf4
{[%clk 0:01:17.4]} 22... Qf6 {[%clk 0:01:15.6]} 23. Bxe5 {[%clk 0:01:09]} 23...
dxe5 {[%clk 0:01:10.4]} 24. Bh3 {[%clk 0:00:58.3]} 24... Kg7 {[%clk 0:01:00.1]}
25. Nd5 {[%clk 0:00:45.6]} 25... Qg5+ {[%clk 0:00:48.1]} 26. Kb1 {[%clk
0:00:44.5]} 26... Rd8 {[%clk 0:00:43.1]} 27. Rdg1 {[%clk 0:00:36.6]} 27... Qd2
{[%clk 0:00:37.9]} 28. Qb3 {[%clk 0:00:20.3]} 28... Bxd5 {[%clk 0:00:36.2]} 29.
exd5 {[%clk 0:00:21.2]} 29... Qxd5 {[%clk 0:00:35.5]} 30. Qe3 {[%clk 0:00:17.1]}
30... Qd4 {[%clk 0:00:32.7]} 31. Qg5 {[%clk 0:00:14.5]} 31... Rd5 {[%clk
0:00:12.9]} 32. Be6 {[%clk 0:00:09.8]} 32... Nxe6 {[%clk 0:00:07.9]} 33. Qxg6+
{[%clk 0:00:09.8]} 33... Kf8 {[%clk 0:00:08.6]} 34. Qxe6 {[%clk 0:00:09.4]} 1-0

[Event "Early-Titled-Tuesday-Blitz-January-23-2024"]
[Site "Chess.com"]
[Date "2024.01.23"]
[Round "8"]
[White "AttilaTurzo"]
[Black "KanalSzachowy"]
[Result "1-0"]
[WhiteElo "2504"]
[BlackElo "2341"]
[TimeControl "180+1"]
[EndTime "9:28:05 PST"]
[Termination "AttilaTurzo won on time"]

1. d4 {[%clk 0:03:00.9]} 1... Nf6 {[%clk 0:02:59.3]} 2. Bf4 {[%clk 0:03:00.3]}
2... d5 {[%clk 0:02:51.6]} 3. Nf3 {[%clk 0:02:58.5]} 3... e6 {[%clk 0:02:46.6]}
4. e3 {[%clk 0:02:57.1]} 4... c5 {[%clk 0:02:46.3]} 5. c3 {[%clk 0:02:54.6]}
5... Bd6 {[%clk 0:02:45.8]} 6. Nbd2 {[%clk 0:02:51.9]} 6... Bxf4 {[%clk
0:02:45.2]} 7. exf4 {[%clk 0:02:52.2]} 7... Nc6 {[%clk 0:02:43]} 8. dxc5 {[%clk
0:02:51.9]} 8... Qc7 {[%clk 0:02:40.1]} 9. g3 {[%clk 0:02:48.2]} 9... a5 {[%clk
0:02:35.5]} 10. Bb5 {[%clk 0:02:33.9]} 10... O-O {[%clk 0:02:35]} 11. O-O {[%clk
0:02:31.5]} 11... Na7 {[%clk 0:02:19.8]} 12. Bd3 {[%clk 0:02:28.6]} 12... Qxc5
{[%clk 0:02:18.9]} 13. Nb3 {[%clk 0:02:28.8]} 13... Qc7 {[%clk 0:02:18.6]} 14.
Nbd4 {[%clk 0:02:28.2]} 14... Nc6 {[%clk 0:02:17.2]} 15. Re1 {[%clk 0:02:24.6]}
15... Re8 {[%clk 0:02:11.5]} 16. Ne5 {[%clk 0:02:21.2]} 16... Qb6 {[%clk
0:01:57.8]} 17. Qd2 {[%clk 0:01:52.8]} 17... a4 {[%clk 0:01:54.6]} 18. a3 {[%clk
0:01:52.1]} 18... Na5 {[%clk 0:01:54.2]} 19. Rad1 {[%clk 0:01:44.1]} 19... Nb3
{[%clk 0:01:50.9]} 20. Nxb3 {[%clk 0:01:38.6]} 20... axb3 {[%clk 0:01:51.8]} 21.
g4 {[%clk 0:01:21.3]} 21... Ra4 {[%clk 0:01:39]} 22. Qe3 {[%clk 0:01:10.2]}
22... d4 {[%clk 0:01:16.3]} 23. cxd4 {[%clk 0:01:06.5]} 23... Nd5 {[%clk
0:01:08]} 24. Qe4 {[%clk 0:00:58.9]} 24... g6 {[%clk 0:01:07.1]} 25. g5 {[%clk
0:00:59]} 25... Rxd4 {[%clk 0:01:02.7]} 26. Qf3 {[%clk 0:00:49.5]} 26... Rxf4
{[%clk 0:01:01.5]} 27. Qg3 {[%clk 0:00:49.2]} 27... h5 {[%clk 0:00:43]} 28. Be4
{[%clk 0:00:29.1]} 28... h4 {[%clk 0:00:39.3]} 29. Qg2 {[%clk 0:00:27]} 29...
Qc7 {[%clk 0:00:15.8]} 30. Nd3 {[%clk 0:00:21.6]} 30... h3 {[%clk 0:00:10.3]}
31. Qg3 {[%clk 0:00:14.5]} 31... Rxe4 {[%clk 0:00:04.7]} 32. Rxe4 {[%clk
0:00:12.3]} 32... Qc2 {[%clk 0:00:05]} 33. Ree1 {[%clk 0:00:08.4]} 1-0

[Event "Early-Titled-Tuesday-Blitz-January-23-2024"]
[Site "Chess.com"]
[Date "2024.01.23"]
[Round "8"]
[White "LuminaryHunter"]
[Black "maurovargas01"]
[Result "1-0"]
[WhiteElo "2177"]
[BlackElo "1847"]
[TimeControl "180+1"]
[EndTime "9:28:05 PST"]
[Termination "LuminaryHunter won on time"]

1. e4 {[%clk 0:03:00.6]} 1... c5 {[%clk 0:02:56.4]} 2. Nf3 {[%clk 0:02:58.3]}
2... Nf6 {[%clk 0:02:53.5]} 3. Nc3 {[%clk 0:02:57.3]} 3... d6 {[%clk 0:02:52.5]}
4. Bc4 {[%clk 0:02:56.9]} 4... e6 {[%clk 0:02:46.7]} 5. d3 {[%clk 0:02:57.1]}
5... Bd7 {[%clk 0:02:44.4]} 6. Bg5 {[%clk 0:02:56.3]} 6... Be7 {[%clk
0:02:43.5]} 7. O-O {[%clk 0:02:56.7]} 7... Nc6 {[%clk 0:02:42.1]} 8. Re1 {[%clk
0:02:56.2]} 8... O-O {[%clk 0:02:41.7]} 9. a3 {[%clk 0:02:55.7]} 9... a6 {[%clk
0:02:40.7]} 10. a4 {[%clk 0:02:52.7]} 10... Rb8 {[%clk 0:02:39.6]} 11. Qd2
{[%clk 0:02:20.6]} 11... b5 {[%clk 0:02:10.9]} 12. axb5 {[%clk 0:02:18.9]} 12...
axb5 {[%clk 0:02:01.6]} 13. Nxb5 {[%clk 0:02:16.6]} 13... Nb4 {[%clk 0:01:57.2]}
14. Bxf6 {[%clk 0:02:01]} 14... Bxf6 {[%clk 0:01:56.1]} 15. Nxd6 {[%clk
0:01:58.2]} 15... Bc6 {[%clk 0:01:44.9]} 16. c3 {[%clk 0:01:41.8]} 16... Qxd6
{[%clk 0:01:25.3]} 17. e5 {[%clk 0:01:33]} 17... Qd8 {[%clk 0:01:15.1]} 18. exf6
{[%clk 0:01:25.9]} 18... Nd5 {[%clk 0:00:56.7]} 19. fxg7 {[%clk 0:01:22.9]}
19... Kxg7 {[%clk 0:00:54.8]} 20. Ne5 {[%clk 0:01:23.1]} 20... Bb7 {[%clk
0:00:46.8]} 21. Bxd5 {[%clk 0:00:52.3]} 21... Qxd5 {[%clk 0:00:45.2]} 22. Qg5+
{[%clk 0:00:48.5]} 22... Kh8 {[%clk 0:00:40.1]} 23. Qf6+ {[%clk 0:00:44.9]}
23... Kg8 {[%clk 0:00:39.3]} 24. Re4 {[%clk 0:00:42.7]} 24... Qxe4 {[%clk
0:00:14]} 25. dxe4 {[%clk 0:00:42.8]} 25... Bxe4 {[%clk 0:00:14.9]} 26. Ng4
{[%clk 0:00:43.4]} 26... h5 {[%clk 0:00:11.3]} 27. Qg5+ {[%clk 0:00:34.8]} 27...
Bg6 {[%clk 0:00:09.8]} 28. Nf6+ {[%clk 0:00:32.6]} 28... Kg7 {[%clk 0:00:07.9]}
29. Qe5 {[%clk 0:00:27.5]} 29... Kh6 {[%clk 0:00:05.9]} 30. f4 {[%clk 0:00:22]}
30... Rh8 {[%clk 0:00:04.7]} 31. g4 {[%clk 0:00:14.5]} 31... hxg4 {[%clk
0:00:03.4]} 32. Nxg4+ {[%clk 0:00:14.4]} 32... Kh7 {[%clk 0:00:02.1]} 33. Nf6+
{[%clk 0:00:13]} 33... Kh6 {[%clk 0:00:01.1]} 34. Re1 {[%clk 0:00:10.6]} 1-0

[Event "Early-Titled-Tuesday-Blitz-January-23-2024"]
[Site "Chess.com"]
[Date "2024.01.23"]
[Round "8"]
[White "Grischuk"]
[Black "alexrustemov"]
[Result "1/2-1/2"]
[WhiteElo "3070"]
[BlackElo "2894"]
[TimeControl "180+1"]
[EndTime "9:28:07 PST"]
[Termination "Game drawn by repetition"]

1. d4 {[%clk 0:03:00.9]} 1... d5 {[%clk 0:03:00]} 2. Nf3 {[%clk 0:02:59.5]} 2...
Nf6 {[%clk 0:03:00.4]} 3. Bf4 {[%clk 0:02:59.4]} 3... c5 {[%clk 0:03:00.1]} 4.
e3 {[%clk 0:02:59.6]} 4... Nc6 {[%clk 0:03:00.6]} 5. Nbd2 {[%clk 0:02:58.8]}
5... Bg4 {[%clk 0:03:00.7]} 6. c3 {[%clk 0:02:58.2]} 6... e6 {[%clk 0:03:00.8]}
7. Qb3 {[%clk 0:02:58.3]} 7... Qc8 {[%clk 0:03:00.7]} 8. Nh4 {[%clk 0:02:56.9]}
8... Be7 {[%clk 0:02:38]} 9. h3 {[%clk 0:02:55.3]} 9... Bh5 {[%clk 0:02:37.7]}
10. g4 {[%clk 0:02:55.2]} 10... Bg6 {[%clk 0:02:34]} 11. Nxg6 {[%clk 0:02:55.3]}
11... hxg6 {[%clk 0:02:34]} 12. Be2 {[%clk 0:02:56]} 12... a6 {[%clk 0:02:31.1]}
13. a3 {[%clk 0:02:51.6]} 13... b5 {[%clk 0:02:29.6]} 14. Qd1 {[%clk 0:02:34.5]}
14... Qb7 {[%clk 0:02:24.1]} 15. Bd3 {[%clk 0:02:29.8]} 15... c4 {[%clk
0:02:17.9]} 16. Bc2 {[%clk 0:02:29.1]} 16... a5 {[%clk 0:02:18.5]} 17. Qf3
{[%clk 0:01:38.4]} 17... b4 {[%clk 0:02:14.3]} 18. axb4 {[%clk 0:01:36.2]} 18...
axb4 {[%clk 0:02:15.2]} 19. Rxa8+ {[%clk 0:01:36.4]} 19... Qxa8 {[%clk
0:02:15.6]} 20. O-O {[%clk 0:01:37]} 20... O-O {[%clk 0:02:09.9]} 21. e4 {[%clk
0:01:08.5]} 21... bxc3 {[%clk 0:02:00.3]} 22. bxc3 {[%clk 0:01:08.3]} 22... Qa2
{[%clk 0:02:00.6]} 23. Bb1 {[%clk 0:01:03.4]} 23... Qb2 {[%clk 0:01:58.5]} 24.
g5 {[%clk 0:00:22.8]} 24... Nh5 {[%clk 0:01:57.4]} 25. exd5 {[%clk 0:00:12.7]}
25... exd5 {[%clk 0:01:57.3]} 26. Be3 {[%clk 0:00:11.4]} 26... Rd8 {[%clk
0:01:48.6]} 27. Nxc4 {[%clk 0:00:11.2]} 27... Qxc3 {[%clk 0:01:48.5]} 28. Rc1
{[%clk 0:00:04]} 28... Nxd4 {[%clk 0:01:47.2]} 29. Qd1 {[%clk 0:00:03.7]} 29...
Qb3 {[%clk 0:01:29.6]} 30. Ne5 {[%clk 0:00:03.9]} 30... Qxd1+ {[%clk 0:01:22]}
31. Rxd1 {[%clk 0:00:04.8]} 31... Ne2+ {[%clk 0:01:18.6]} 32. Kf1 {[%clk
0:00:04.7]} 32... Nc3 {[%clk 0:01:19.2]} 33. Rc1 {[%clk 0:00:03.9]} 33... Nxb1
{[%clk 0:01:17.1]} 34. Rxb1 {[%clk 0:00:04.8]} 34... Bd6 {[%clk 0:01:07.6]} 35.
Nd3 {[%clk 0:00:05]} 35... f6 {[%clk 0:00:57.7]} 36. Rb5 {[%clk 0:00:04]} 36...
Be7 {[%clk 0:00:55.7]} 37. h4 {[%clk 0:00:04]} 37... Rd7 {[%clk 0:00:51.4]} 38.
Ke2 {[%clk 0:00:03.8]} 38... Kf7 {[%clk 0:00:51.5]} 39. Kf3 {[%clk 0:00:04]}
39... Ke6 {[%clk 0:00:44.3]} 40. Kg4 {[%clk 0:00:04.4]} 40... fxg5 {[%clk
0:00:36.4]} 41. hxg5 {[%clk 0:00:04.3]} 41... d4 {[%clk 0:00:35.8]} 42. Bd2
{[%clk 0:00:04.3]} 42... Rd5 {[%clk 0:00:34.9]} 43. Rb6+ {[%clk 0:00:03.6]}
43... Rd6 {[%clk 0:00:35.3]} 44. Rb5 {[%clk 0:00:03.5]} 44... Rd5 {[%clk
0:00:35.4]} 45. Rb6+ {[%clk 0:00:04]} 45... Rd6 {[%clk 0:00:35.7]} 46. Rb5
{[%clk 0:00:04.4]} 46... Rd5 {[%clk 0:00:31.3]} 1/2-1/2

[Event "Early-Titled-Tuesday-Blitz-January-23-2024"]
[Site "Chess.com"]
[Date "2024.01.23"]
[Round "8"]
[White "otrov-11"]
[Black "grzechu96"]
[Result "0-1"]
[WhiteElo "2509"]
[BlackElo "2687"]
[TimeControl "180+1"]
[EndTime "9:28:10 PST"]
[Termination "grzechu96 won by resignation"]

1. d4 {[%clk 0:03:00.9]} 1... d5 {[%clk 0:02:56.8]} 2. c4 {[%clk 0:03:01.4]}
2... e6 {[%clk 0:02:57]} 3. g3 {[%clk 0:03:01.7]} 3... dxc4 {[%clk 0:02:55.7]}
4. Nf3 {[%clk 0:03:02.2]} 4... c5 {[%clk 0:02:55.1]} 5. Bg2 {[%clk 0:03:02.3]}
5... Nc6 {[%clk 0:02:55.2]} 6. O-O {[%clk 0:03:01.6]} 6... cxd4 {[%clk
0:02:54.7]} 7. Qa4 {[%clk 0:03:00.2]} 7... Bd7 {[%clk 0:02:49.2]} 8. Qxc4 {[%clk
0:03:00.2]} 8... Rc8 {[%clk 0:02:43]} 9. Nxd4 {[%clk 0:02:58.4]} 9... Nf6 {[%clk
0:02:39.8]} 10. Nxc6 {[%clk 0:02:54.3]} 10... Bxc6 {[%clk 0:02:39.7]} 11. Bxc6+
{[%clk 0:02:53.3]} 11... Rxc6 {[%clk 0:02:40.6]} 12. Qa4 {[%clk 0:02:53.5]}
12... Bc5 {[%clk 0:02:33.2]} 13. Nc3 {[%clk 0:02:48]} 13... O-O {[%clk
0:02:32.2]} 14. Bg5 {[%clk 0:02:48.6]} 14... Qd4 {[%clk 0:02:17]} 15. Rad1
{[%clk 0:01:52.2]} 15... Qxa4 {[%clk 0:02:15.3]} 16. Nxa4 {[%clk 0:01:53.1]}
16... Be7 {[%clk 0:02:10.3]} 17. Nc3 {[%clk 0:01:51.5]} 17... Bb4 {[%clk
0:01:59.1]} 18. Rd3 {[%clk 0:01:16.9]} 18... Bxc3 {[%clk 0:01:52.5]} 19. bxc3
{[%clk 0:01:17.8]} 19... Ne4 {[%clk 0:01:49.6]} 20. Bd2 {[%clk 0:01:07.2]} 20...
Nc5 {[%clk 0:01:21]} 21. Rd4 {[%clk 0:01:03.4]} 21... b6 {[%clk 0:01:18.8]} 22.
f3 {[%clk 0:00:59.2]} 22... f6 {[%clk 0:01:16.7]} 23. Rd1 {[%clk 0:00:51.1]}
23... Rc7 {[%clk 0:01:10.7]} 24. Be1 {[%clk 0:00:50.8]} 24... Kf7 {[%clk
0:01:09.4]} 25. Kf2 {[%clk 0:00:46.1]} 25... Ke7 {[%clk 0:01:09.7]} 26. h4
{[%clk 0:00:39.7]} 26... e5 {[%clk 0:01:09.5]} 27. Rd5 {[%clk 0:00:38.8]} 27...
Ne6 {[%clk 0:01:08.1]} 28. c4 {[%clk 0:00:34]} 28... Rd8 {[%clk 0:01:02.4]} 29.
Bb4+ {[%clk 0:00:33.8]} 29... Ke8 {[%clk 0:01:02.6]} 30. Rd6 {[%clk 0:00:24.2]}
30... Rxd6 {[%clk 0:00:59.1]} 31. Rxd6 {[%clk 0:00:25.1]} 31... Nd4 {[%clk
0:00:53]} 32. e3 {[%clk 0:00:22.1]} 32... Nc2 {[%clk 0:00:46]} 33. Bd2 {[%clk
0:00:19.6]} 33... Ke7 {[%clk 0:00:43.5]} 34. Rd3 {[%clk 0:00:17]} 34... Rxc4
{[%clk 0:00:43.6]} 35. f4 {[%clk 0:00:09.9]} 35... e4 {[%clk 0:00:42.6]} 36. Rc3
{[%clk 0:00:09.3]} 36... Rxc3 {[%clk 0:00:42.2]} 37. Bxc3 {[%clk 0:00:10.2]}
37... h5 {[%clk 0:00:36.9]} 38. Ke2 {[%clk 0:00:09.9]} 38... Ke6 {[%clk
0:00:35.1]} 39. Kd2 {[%clk 0:00:06.6]} 39... Na3 {[%clk 0:00:35.4]} 40. Bb4
{[%clk 0:00:07]} 40... Nb5 {[%clk 0:00:34.4]} 41. Bf8 {[%clk 0:00:04.1]} 41...
g6 {[%clk 0:00:33.6]} 42. Kc2 {[%clk 0:00:04.6]} 42... Nc7 {[%clk 0:00:29.6]}
43. Kb3 {[%clk 0:00:04.2]} 43... Nd5 {[%clk 0:00:29.2]} 44. Kc4 {[%clk
0:00:02.8]} 44... Nxe3+ {[%clk 0:00:29.8]} 45. Kb5 {[%clk 0:00:03.7]} 45... Nd5
{[%clk 0:00:26.8]} 46. Ka6 {[%clk 0:00:03.6]} 46... e3 {[%clk 0:00:27.3]} 0-1

[Event "Early-Titled-Tuesday-Blitz-January-23-2024"]
[Site "Chess.com"]
[Date "2024.01.23"]
[Round "8"]
[White "Horokoskii"]
[Black "Championnn-9"]
[Result "0-1"]
[WhiteElo "2063"]
[BlackElo "2580"]
[TimeControl "180+1"]
[EndTime "9:28:11 PST"]
[Termination "Championnn-9 won on time"]

1. d4 {[%clk 0:03:00.9]} 1... Nf6 {[%clk 0:02:56.7]} 2. c4 {[%clk 0:02:59.4]}
2... b6 {[%clk 0:02:55]} 3. Nc3 {[%clk 0:02:58.2]} 3... Bb7 {[%clk 0:02:53]} 4.
Nf3 {[%clk 0:02:59.1]} 4... e6 {[%clk 0:02:52.4]} 5. g3 {[%clk 0:02:59.6]} 5...
Bb4 {[%clk 0:02:52]} 6. Bg2 {[%clk 0:02:59.9]} 6... O-O {[%clk 0:02:50.9]} 7.
O-O {[%clk 0:02:59.7]} 7... Bxc3 {[%clk 0:02:47.7]} 8. bxc3 {[%clk 0:02:57.7]}
8... Ne4 {[%clk 0:02:48.4]} 9. Qc2 {[%clk 0:02:52.6]} 9... f5 {[%clk 0:02:46.7]}
10. Nd2 {[%clk 0:02:39.7]} 10... d5 {[%clk 0:02:44.2]} 11. a4 {[%clk 0:02:28.1]}
11... Nd7 {[%clk 0:02:24.6]} 12. Rb1 {[%clk 0:02:00.2]} 12... Rb8 {[%clk
0:02:16.3]} 13. Ba3 {[%clk 0:01:58.4]} 13... c5 {[%clk 0:02:13]} 14. a5 {[%clk
0:01:55.2]} 14... Rf7 {[%clk 0:01:57.4]} 15. Rb2 {[%clk 0:01:41.4]} 15... Ba6
{[%clk 0:01:47.8]} 16. cxd5 {[%clk 0:01:34.6]} 16... exd5 {[%clk 0:01:48.7]} 17.
f3 {[%clk 0:01:27.3]} 17... Nd6 {[%clk 0:01:39.6]} 18. Re1 {[%clk 0:01:19.1]}
18... Rc8 {[%clk 0:01:34.4]} 19. dxc5 {[%clk 0:01:13.8]} 19... bxc5 {[%clk
0:01:32.3]} 20. e4 {[%clk 0:01:08.2]} 20... fxe4 {[%clk 0:01:13.8]} 21. fxe4
{[%clk 0:01:09.1]} 21... Ne5 {[%clk 0:01:08.4]} 22. exd5 {[%clk 0:00:40.2]}
22... Nd3 {[%clk 0:01:08.2]} 23. Rbb1 {[%clk 0:00:30.3]} 23... Nxe1 {[%clk
0:01:06.3]} 24. Rxe1 {[%clk 0:00:31.2]} 24... Qxa5 {[%clk 0:01:05.6]} 25. Bb2
{[%clk 0:00:23.8]} 25... c4 {[%clk 0:01:02.6]} 26. Ne4 {[%clk 0:00:20]} 26...
Qb6+ {[%clk 0:00:52.3]} 27. Kh1 {[%clk 0:00:19.2]} 27... Re8 {[%clk 0:00:44.2]}
28. Re2 {[%clk 0:00:16.3]} 28... Rfe7 {[%clk 0:00:40.9]} 29. Ba3 {[%clk
0:00:12.6]} 29... Rxe4 {[%clk 0:00:25.1]} 30. Bxe4 {[%clk 0:00:12.4]} 30... Kh8
{[%clk 0:00:19.7]} 31. Bxd6 {[%clk 0:00:11.7]} 31... Qxd6 {[%clk 0:00:19.4]} 32.
Bf3 {[%clk 0:00:08]} 32... Rf8 {[%clk 0:00:19.1]} 33. Kg2 {[%clk 0:00:06.6]}
33... Bb7 {[%clk 0:00:19.1]} 34. Qd2 {[%clk 0:00:05.7]} 34... Qf6 {[%clk
0:00:19.2]} 35. Qe3 {[%clk 0:00:05.7]} 35... h6 {[%clk 0:00:16]} 36. Rf2 {[%clk
0:00:06.1]} 36... Qd6 {[%clk 0:00:15.2]} 37. Be2 {[%clk 0:00:05.2]} 37... Bxd5+
{[%clk 0:00:14.4]} 38. Kg1 {[%clk 0:00:05.8]} 38... Rxf2 {[%clk 0:00:14.1]} 39.
Qxf2 {[%clk 0:00:04.5]} 39... Qe7 {[%clk 0:00:13.4]} 40. Qe3 {[%clk 0:00:03.6]}
40... Qxe3+ {[%clk 0:00:12.7]} 0-1